[Event "European Women-ch 2023"]
[Site "Petrovac"]
[Date "2023.03.23"]
[Round "6.10"]
[White "Lehaci, Miruna-Daria"]
[Black "Savina, Anastasia"]
[Result "0-1"]
[ECO "C57"]
[WhiteElo "2202"]
[BlackElo "2345"]
[Annotator "TA"]
[PlyCount "48"]
[EventDate "2023.03.15"]
[EventType "swiss"]
[EventCountry "MNE"]
[SourceTitle "playchess.com"]
[Source "ChessBase"]
[SourceQuality "1"]
[TimeControl "40/5400+30:1800+30"]

{[%evp 11,47,71,70,71,47,33,31,26,32,33,31,35,38,-11,-18,0,0,-62,-20,-148,-144,-226,-235,-320,-302,-305,-297,-872,-863,-1242,-1218,-2113,-2083,-1935,-1942,-29992,-29993,-29993]} 1. e4 {[%emt 0:00:03]} e5 {[%emt 0:00:22]} 2. Nf3 {[%emt 0:00:06]} Nc6 {[%emt 0:00:05]} 3. Bc4 {[%emt 0:00:05]} Nf6 {[%emt 0:01:07][%cal Bg8f6,Bf6d5,Bd5b4][%mdl 32]} 4. Ng5 {[%emt 0:00:08]} d5 {[%emt 0:00:49]} 5. exd5 {[%emt 0:00:16]} b5 {[%emt 0:01:07]} 6. Bf1 {[%emt 0:02:20]} Nxd5 {[%emt 0:00:27]} 7. Bxb5 {[%emt 0:01:35]} Bb7 {[%emt 0:00:18]} 8. Qf3 {[%emt 0:09:27][%csl Gg5][%cal Rf3f7]} Qd7 {[%emt 0:09:39]} 9. Nc3 {[%emt 0:06:06] White is slightly better.} Ndb4 {[%emt 0:15:16]} 10. Ba4 {[%emt 0:07:35]} h6 {[%emt 0:07:25]} 11. Nge4 {[%emt 0:00:37] Strongly threatening a3.} O-O-O $1 {[%emt 0:08:01]} 12. O-O {[%emt 0:11:46]} (12. d3 $14) 12... f5 $11 {[%emt 0:09:37][%mdl 1024] Black has compensation.} 13. Ng3 {[%emt 0:00:18]} f4 {[%emt 0:12:39]} 14. Nge4 {[%emt 0:09:24]} ({Better is} 14. Nge2 $11) 14... Qf5 $1 $15 {[%emt 0:06:20] aiming for ...Nd4.} 15. Ne2 {[%emt 0:12:05] [#]} (15. Qd1 $1 $11) 15... g5 $1 $17 {[%emt 0:14:04][%cal Bg7g5,Bg5g4,Bg4f3][%mdl 32] Threatens to win with ...g4. Black is more active.} 16. N4g3 {[%emt 0:11:21] [#]} (16. g4 $17 Nd4 17. Nxd4 Qxe4 18. Qxe4 Bxe4 19. Ne6) 16... Qe6 $1 $19 {[%emt 0:08:30]} 17. Ne4 {[%emt 0:11:54]} g4 {[%emt 0:00:17]} 18. Qb3 {[%emt 0:00:37]} Qg6 {[%emt 0:00:41]} 19. a3 $2 {[%emt 0:03:09]} (19. Bxc6 Nxc6 20. d3) 19... Na5 {[%emt 0:01:59]} 20. Nxf4 {[%emt 0:03:22]} exf4 {[%emt 0:00:39]} ({And not} 20... Qxe4 21. Qe6+ Kb8 22. axb4 Qxf4 23. d3 Qxb4 24. Qxe5 $17) 21. Qc3 {[%emt 0:00:03]} Qxe4 {[%emt 0:00:09][%csl Gb7][%cal Re4g2]} 22. f3 {[%emt 0:00:04]} gxf3 {[%emt 0:00:29] ( -> ...Rg8)} 23. Qxh8 {[%emt 0:00:05]} Bc5+ {[%emt 0:00:12][%mdl 64] Discovered Attack} 24. d4 {[%emt 0:00:04]} Bxd4+ {[%emt 0:00:35] White got outplayed after the opening. Excellently played by Savina!   Weighted Error Value: White=1.35/Black=0.00 (flawless)} 0-1

[Event "European Women-ch 2023"]
[Site "Petrovac"]
[Date "2023.03.23"]
[Round "6.10"]
[White "Makka, Ioulia"]
[Black "Allahverdiyeva, Ayan"]
[Result "1-0"]
[ECO "B23"]
[WhiteElo "1949"]
[BlackElo "2124"]
[Annotator "TA"]
[PlyCount "71"]
[EventDate "2023.03.15"]
[EventType "swiss"]
[EventCountry "MNE"]
[SourceTitle "playchess.com"]
[Source "ChessBase"]
[SourceQuality "1"]
[TimeControl "40/5400+30:1800+30"]

{[%evp 9,71,8,1,0,-7,1,12,-44,-8,-15,-21,-26,0,0,0,0,10,-22,-12,-22,-18,-12,-14,-15,-11,-15,9,-75,-25,-37,0,-304,-92,-138,-30,-22,0,-29,95,97,104,75,128,0,0,0,0,-57,302,284,345,285,925,914,877,875,1573,1703,1259,1259,1203,939,29982,29981]} 1. e4 {[%emt 0:00:03]} c5 {[%emt 0:03:13]} 2. Nc3 {[%emt 0:00:07]} d6 {[%emt 0:00:05]} 3. d4 {[%emt 0:01:52]} cxd4 {[%emt 0:00:26]} 4. Qxd4 {[%emt 0:00:07]} Nc6 {[%emt 0:00:11]} 5. Qd2 {[%emt 0:00:47]} g6 {[%emt 0:00:08]} 6. b3 {[%emt 0:00:09]} Bh6 {[%emt 0:00:22]} 7. f4 {[%emt 0:00:47]} Nf6 {[%emt 0:01:07]} 8. Nf3 {[%emt 0:04:16]} (8. Bb2 $11) 8... e5 {[%emt 0:03:34]} 9. g3 {[%emt 0:01:18]} O-O {[%emt 0:05:17] And now ...exf4 would win.} 10. Bb2 $1 {[%emt 0:38:46]} exf4 {[%emt 0:19:57]} (10... Bg4 $5 {[%cal Rg4f3]} 11. Bg2 Re8 $11) 11. O-O-O $1 {[%emt 0:05:21]} Bg4 {[%emt 0:03:29]} 12. Bg2 {[%emt 0:05:54]} Ne5 {[%emt 0:17:17]} 13. Rdf1 {[%emt 0:01:23]} Re8 {[%emt 0:07:20]} 14. gxf4 {[%emt 0:10:58]} Nxf3 {[%emt 0:03:25]} 15. Bxf3 {[%emt 0:00:07]} Bxf3 {[%emt 0:00:03]} 16. Rxf3 {[%emt 0:00:08]} Nxe4 {[%emt 0:01:12]} 17. Qd3 {[%emt 0:12:11]} Nc5 {[%emt 0:06:28]} 18. Qc4 {[%emt 0:02:16]} (18. Qd1 $11 {keeps the balance.}) 18... Qh4 {[%emt 0:05:27]} (18... Bg7 $17 19. f5 Ne4 {[%mdl 64] Decoy} 20. Nxe4 d5 21. Nf6+ Qxf6 22. Bxf6 dxc4 23. Bxg7 Kxg7) 19. Rd1 $11 {[%emt 0:03:38] Black must now prevent Nd5.} Bg7 {[%emt 0:06:19]} (19... Qxh2 $2 20. Nd5 Ne6 21. Nf6+ Kf8 22. Nxh7+ Kg8 23. Nf6+ Kf8 24. Qd3 $18) 20. Rxd6 $2 {[%emt 0:02:20][%mdl 8192]} (20. Nd5 $11 Bxb2+ 21. Kxb2) 20... Qe1+ $2 {[%emt 0:01:18]} (20... Qxh2 21. Qf1 $17) (20... Rac8 $19 {[%cal Oc5e4] and Black stays clearly on top. ...Ne4! would be deadly.} 21. Nd1 Qxh2) 21. Nd1 {[%emt 0:04:36]} (21. Rd1 $142 Rad8 22. Rf1 Rxd1+ 23. Nxd1 Bxb2+ 24. Kxb2) 21... Bxb2+ {[%emt 0:06:38]} (21... Rac8 $1 $17 22. Bc3 (22. Bxg7 $2 Ne4 $19) 22... Bxc3 23. Rxc3 Qh4) 22. Kxb2 {[%emt 0:00:01]} Rac8 {[%emt 0:00:02]} (22... Qe4 {simplifies} 23. Qxe4 Nxe4 24. Rd7 Nc5) 23. Qd4 {[%emt 0:02:20]} Qe2 {[%emt 0:05:44]} (23... Qe4 $11 {remains equal.} 24. Qxe4 Nxe4) 24. Re3 $1 $16 {[%emt 0:00:45]} Rxe3 {[%emt 0:01:49]} 25. Nxe3 {[%emt 0:00:44][%cal Bd1e3,Be3c4,Bc4d6][%mdl 32] Hoping for Rd8+.} Ne6 {[%emt 0:00:10] [#] Repels Rd8+} (25... b6 $142) 26. Qxa7 {[%emt 0:01:03]} (26. Qe5 $1 $16 {Threatens to win with Rxe6.} Nf8 27. Qe4) 26... Nc5 $11 {[%emt 0:01:43]} ({But not} 26... Qe1 27. Qxb7 Qc3+ 28. Kb1 $16) 27. Nc4 {[%emt 0:00:41]} Qxh2 {[%emt 0:00:37]} 28. Rd5 {[%emt 0:01:06] [#]} (28. Nb6 $11 Nd3+ {[%mdl 64] Decoy} 29. Rxd3 Qxc2+ 30. Ka3 Qc1+ 31. Ka4 Qc6+ 32. Ka3 (32. Ka5 Qc5+ 33. Ka4 Rc6 $11) 32... Qc1+ 33. Ka4 Qc6+ 34. Ka3 (34. Ka5 Qc5+ 35. Ka4 Rc6 $11) 34... Qc1+) 28... Qxf4 $2 {[%emt 0:00:06][%mdl 8192]} 29. Nd6 $18 {[%emt 0:00:38]} Qf6+ {[%emt 0:00:58]} 30. Ka3 {[%emt 0:00:07]} Qd8 {[%emt 0:00:02]} (30... Ne4 31. Nxc8 Nc3) 31. Nxc8 {[%emt 0:00:27]} (31. Rxc5 $2 {loses.} Ra8 $19) 31... Qxc8 {[%emt 0:00:58]} 32. Rxc5 {[%emt 0:00:28]} Qd7 {[%emt 0:00:14]} 33. Qb8+ {[%emt 0:00:21]} Kg7 {[%emt 0:00:04]} 34. Qe5+ {[%emt 0:00:25]} Kh6 {[%emt 0:00:40]} 35. Rc4 {[%emt 0:00:40][%cal Rc4h4]} f5 {[%emt 0:00:23]} 36. Qf6 {[%emt 0:00:29] What a bad dream for Black.   Weighted Error Value: White=0.38/Black=0.70} 1-0

[Event "European Women-ch 2023"]
[Site "Petrovac"]
[Date "2023.03.23"]
[Round "6.11"]
[White "Badelka, Olga"]
[Black "Vega Gutierrez, Sabrina"]
[Result "0-1"]
[ECO "B45"]
[WhiteElo "2428"]
[BlackElo "2361"]
[Annotator "TA"]
[PlyCount "162"]
[EventDate "2023.03.15"]
[EventType "swiss"]
[EventCountry "MNE"]
[SourceTitle "playchess.com"]
[Source "ChessBase"]
[SourceQuality "1"]
[TimeControl "40/5400+30:1800+30"]

{[%evp 21,162,26,37,31,29,29,31,36,34,32,34,37,31,30,30,44,25,39,40,10,14,27,21,16,23,0,8,0,0,0,0,0,0,0,0,0,0,0,0,0,0,0,8,8,8,0,8,8,31,4,8,0,17,0,0,0,0,0,0,0,0,0,0,-14,0,0,0,-7,-8,-11,8,0,0,0,0,0,0,0,0,0,0,-69,0,-42,-87,-59,0,-75,-75,-75,-75,-226,-225,-225,-211,-191,-87,-477,-121,-121,0,-457,0,-115,-118,-283,-228,-579,-539,-718,0,0,0,-663,-651,-847,-827,-813,-802,-789,-733,-734,-704,-858,-744,-2245,-2075,-2001,-1997,-2960,-1472,-3308,-2961,-5206,-4731,-3206,-2462,-29985,-29986,-29985,-29986,-29987,-29988]} 1. e4 {[%emt 0:00:30]} c5 {[%emt 0:00:30]} 2. Nf3 {[%emt 0:00:30]} e6 {[%emt 0:00:30]} 3. d4 {[%emt 0:00:30]} cxd4 {[%emt 0:00:30]} 4. Nxd4 {[%emt 0:00:30]} Nf6 {[%emt 0:00:30][%cal Bg8f6,Bf6d5,Bd5e3][%mdl 32]} 5. Nc3 {[%emt 0:00:30]} Nc6 {[%emt 0:00:30]} 6. Nxc6 {[%emt 0:00:30]} bxc6 {[%emt 0:00:30]} 7. e5 {[%emt 0:00:30]} Nd5 {[%emt 0:00:30]} 8. Ne4 {[%emt 0:00:30]} Qc7 {[%emt 0:00:30]} 9. f4 {[%emt 0:00:30]} Qb6 {[%emt 0:00:30]} 10. c4 {[%emt 0:00:30]} Ne3 {[%emt 0:00:30]} 11. Qd3 {[%emt 0:00:30]} Bb4+ {[%emt 0:00:30]} 12. Bd2 {[%emt 0:00:30]} Ba6 {[%emt 0:00:30]} 13. Bxb4 {[%emt 0:00:30]} Qxb4+ {[%emt 0:00:30]} 14. Kf2 $1 {[%emt 0:00:30] White is slightly better.} Qxb2+ {[%emt 0:00:30]} 15. Be2 {[%emt 0:00:30]} Nxc4 {[%emt 0:00:30]} 16. Rab1 {[%emt 0:00:30]} Nxe5 $1 {[%emt 0:00:30]} 17. fxe5 {[%emt 0:00:30]} (17. Rxb2 $2 Nxd3+ 18. Bxd3 Bxd3 $19) 17... Qxe5 {[%emt 0:00:30]} 18. Qxa6 {[%emt 0:00:30]} Qxe4 {[%emt 0:00:30]} 19. Rhd1 O-O 20. Rb3 {[%emt 0:33:31]} d5 {[%emt 0:05:43]} 21. Qxc6 {[%emt 0:04:16]} Rac8 {[%emt 0:02:04]} 22. Qa6 {[%emt 0:15:28]} Rc2 {[%emt 0:00:18]} 23. h3 {[%emt 0:08:09]} g6 {[%emt 0:01:37]} 24. a3 {[%emt 0:01:55]} Rfc8 {[%emt 0:08:22]} 25. Re3 {[%emt 0:03:01]} Qf4+ {[%emt 0:25:20]} 26. Rf3 {[%emt 0:00:12]} Qe5 {[%emt 0:00:33]} 27. Re3 {[%emt 0:18:08]} Qc7 {[%emt 0:03:48]} 28. Qd3 {[%emt 0:01:38]} Qa5 {[%emt 0:08:42]} 29. Qd4 {[%emt 0:00:32]} R8c4 {[%emt 0:19:56]} 30. Qf6 {[%emt 0:00:46]} Qb6 {[%emt 0:01:26]} 31. Kf3 {[%emt 0:00:51][%cal Bf2f3,Bf3g3,Bg3h2][%mdl 32]} Rc8 {[%emt 0:04:20]} ({But not} 31... Re4 32. Rxe4 dxe4+ 33. Kg4 $16) 32. Rdd3 {[%emt 0:01:48]} Qd6 {[%emt 0:09:56]} 33. Qf4 {[%emt 0:02:08]} Qc6 {[%emt 0:01:10] And now ...d4+ would win.} 34. Kg3 {[%emt 0:00:21]} Rb2 {[%emt 0:03:51]} (34... Rc4 {simplifies} 35. Qe5 Qc7 36. Qxc7 R8xc7 37. Kf3 Kg7) 35. Bf3 {[%emt 0:01:26]} (35. Rb3 {simplifies} Rxb3 36. Rxb3 Qc7 37. Qxc7 Rxc7 38. Kf2) 35... Qc2 {[%emt 0:01:05]} 36. Kh2 {[%emt 0:03:26]} Rb1 {[%emt 0:00:34]} 37. Qf6 {[%emt 0:00:59] Rc3 is the strong threat.} (37. h4 {with more complications.} Rc4 38. Rd4 Rxd4 39. Qxd4 Qc7+ 40. g3) 37... Qc7+ {[%emt 0:00:40]} (37... Qf2 $2 38. Rxe6 Rf1 39. h4 (39. Re7 Qg1+ 40. Kg3 Qf2+ 41. Kh2 Qg1+ 42. Kg3 Qf2+ 43. Kh2 $11) 39... fxe6 40. Qxe6+ Kg7 41. Qd7+ Kf6 42. Qxc8 $18) 38. Qe5 $1 {[%emt 0:00:06]} Qxe5+ {[%emt 0:00:31]} 39. Rxe5 {[%emt 0:00:01]} h5 {[%emt 0:00:24]} 40. Kg3 {[%emt 0:00:00]} Rc4 {[%emt 0:00:00]} 41. Kf2 {[%emt 0:05:30]} Kg7 {[%emt 0:03:35]} 42. Re1 {[%emt 0:01:28]} Rxe1 {[%emt 0:05:48]} 43. Kxe1 $11 {[%emt 0:00:04][%mdl 4096] Endgame KRB-KR} f5 {[%emt 0:01:45]} 44. Kd2 {[%emt 0:04:28]} d4 {[%emt 0:01:06]} 45. Rb3 {[%emt 0:00:50]} Ra4 {[%emt 0:00:49][%mdl 1024] Black has compensation.} 46. Bc6 {[%emt 0:00:44]} Ra6 {[%emt 0:00:19]} 47. Bb5 {[%emt 0:05:28]} Rb6 {[%emt 0:17:40]} 48. a4 {[%emt 0:00:09]} e5 {[%emt 0:00:39]} 49. a5 $1 {[%emt 0:00:09]} Rb8 {[%emt 0:01:45]} 50. Kd3 {[%emt 0:00:29]} Kf6 {[%emt 0:00:26]} 51. a6 {[%emt 0:05:41]} (51. Ba4 $11 Rc8 52. a6) 51... h4 {[%emt 0:02:09]} (51... Rd8 $15) 52. Kc4 {[%emt 0:03:48]} Rd8 {[%emt 0:00:14]} 53. Rd3 {[%emt 0:07:29]} Ke6 {[%emt 0:00:10]} (53... Rc8+ $1 $15 54. Kd5 Rc2) 54. Bc6 {[%emt 0:00:25]} (54. Kc5 $1 $11 {remains equal.}) 54... Kd6 $1 $17 {[%emt 0:00:37]} ({Much worse is} 54... Rc8 $6 55. Kc5 $11) 55. Bb7 {[%emt 0:00:12]} Rd7 {[%emt 0:00:25]} 56. Ra3 $2 {[%emt 0:01:31]} (56. Rd1 $17 {might work better.}) 56... Rc7+ $19 {[%emt 0:00:29]} 57. Kd3 {[%emt 0:00:01]} Rc5 {[%emt 0:00:41]} 58. Rb3 {[%emt 0:00:52] [#]} Ra5 {[%emt 0:00:14]} (58... Ke6 $1 $19 {is more deadly.} 59. Ra3 Kf7) 59. Bc8 $2 {[%emt 0:01:15][%mdl 8192]} (59. Kc4 $17) 59... Kc7 $2 {[%emt 0:00:19]} (59... Kd5 $19 {Strongly threatening ...e4+.} 60. Bb7+ Kc5) 60. Bb7 $17 {[%emt 0:00:03] [#]} Kd6 $2 {[%emt 0:00:12][%mdl 8192]} (60... Ra4 $1 $17 61. Rb5 e4+ 62. Bxe4 fxe4+ 63. Kxe4 Rxa6 64. Kxd4 Ra3) 61. Bc8 $1 $19 {[%emt 0:01:23]} Kc7 $2 {[%emt 0:00:01]} (61... Kd5 $19 {has better winning chances. Hoping for ...e4+.} 62. Bb7+ Kc5) 62. Bb7 $17 {[%emt 0:00:10]} Ra4 {[%emt 0:00:34]} 63. Bf3 $2 {[%emt 0:01:33]} (63. Rb5 $17 e4+ 64. Bxe4 fxe4+ 65. Kxe4) 63... Rxa6 {[%emt 0:00:39] ...Kd6 would be deadly.} 64. Rb7+ $2 {[%emt 0:00:18]} (64. Bd5 {is tougher.}) 64... Kd6 $19 {[%emt 0:00:17]} 65. Rg7 {[%emt 0:00:15]} Kc5 $2 {[%emt 0:01:30]} ({Better is} 65... Ra3+ $19 66. Kc2 e4 67. Rxg6+ Ke5) 66. Rc7+ $11 {[%emt 0:00:07]} Kd6 $2 {[%emt 0:00:01][%mdl 8192]} (66... Kb5 $11 67. Bd5 Ra3+ 68. Ke2 a5) 67. Rg7 $1 $19 {[%emt 0:00:01] White is now going downhill.} Ra3+ {[%emt 0:01:14]} 68. Kc4 {[%emt 0:00:21]} Rc3+ {[%emt 0:00:43]} 69. Kb4 {[%emt 0:00:01]} e4 {[%emt 0:00:13]} 70. Rxg6+ {[%emt 0:00:15]} Ke5 {[%emt 0:00:03]} 71. Bh5 {[%emt 0:00:20]} Rc2 {[%emt 0:01:09]} 72. Bd1 {[%emt 0:02:29]} Rc1 {[%emt 0:00:26]} 73. Bb3 {[%emt 0:00:32]} d3 {[%emt 0:00:16][%cal Bd4d3,Bd3d2][%mdl 32]} 74. Re6+ {[%emt 0:00:03]} Kf4 {[%emt 0:00:08]} 75. Rd6 {[%emt 0:00:52]} Ke3 {[%emt 0:00:49]} (75... e3 $142 76. Rd4+ Kg5) 76. Ka3 {[%emt 0:00:56]} d2 {[%emt 0:01:08]} 77. Kb2 {[%emt 0:00:03]} Ke2 {[%emt 0:00:31]} 78. Rf6 {[%emt 0:00:12]} Rc5 {[%emt 0:00:28] ( -> ...Rb5)} 79. Rh6 {[%emt 0:01:06]} Rb5 {[%emt 0:00:11] Black mates.} 80. Rd6 {[%emt 0:00:07]} e3 {[%emt 0:00:15]} 81. Kc2 {[%emt 0:00:08] [#]} Rxb3 $1 {[%emt 0:00:10][%mdl 576] Promotion.   Weighted Error Value: White=0.22 (precise) /Black=0.18 (very precise)} 0-1

[Event "European Women-ch 2023"]
[Site "Petrovac"]
[Date "2023.03.23"]
[Round "6.11"]
[White "Jarocka, Liwia"]
[Black "Heinemann, Josefine"]
[Result "1-0"]
[ECO "B22"]
[WhiteElo "2181"]
[BlackElo "2343"]
[Annotator "TA"]
[PlyCount "130"]
[EventDate "2023.03.15"]
[EventType "swiss"]
[EventCountry "MNE"]
[SourceTitle "playchess.com"]
[Source "ChessBase"]
[SourceQuality "1"]
[TimeControl "40/5400+30:1800+30"]

{[%evp 18,130,10,0,7,0,0,0,0,0,0,0,0,0,0,3,0,-15,-14,-20,0,-3,6,6,22,28,25,-34,0,-16,0,0,37,37,37,37,45,38,50,43,51,0,0,-2,-2,0,-12,-6,-2,-14,-6,-15,-14,-16,0,-4,0,0,30,0,7,0,0,0,3,8,53,53,120,120,79,87,87,93,414,318,568,322,4495,4201,3745,3266,1777,1643,9680,1680,10944,10749,6764,8554,29960,29961,29970,29971,29970,29970,29968,29970,29970,29971,29976,29977,29977,29978,29978,29979,29979,29980,29980,29981,29981,29982,29982,29983,29983]} 1. e4 {[%emt 0:00:03][%cal Be2e4,Be4e5][%mdl 32]} c5 {[%emt 0:00:10]} 2. c3 {[%emt 0:00:16]} Nf6 {[%emt 0:00:19]} 3. e5 {[%emt 0:00:20]} Nd5 {[%emt 0:00:05]} 4. Nf3 {[%emt 0:00:12]} d6 {[%emt 0:00:47]} 5. exd6 {[%emt 0:00:45]} e6 {[%emt 0:00:42]} 6. g3 {[%emt 0:01:44]} Bxd6 {[%emt 0:02:34]} 7. d4 {[%emt 0:04:26]} O-O {[%emt 0:01:42]} 8. Bg2 {[%emt 0:00:13]} Nc6 {[%emt 0:01:12]} 9. O-O {[%emt 0:00:28]} cxd4 {[%emt 0:00:11]} 10. Nxd4 {[%emt 0:00:29]} Bd7 {[%emt 0:00:52]} 11. Nb5 {[%emt 0:14:35]} Bc5 {[%emt 0:08:22]} 12. c4 {[%emt 0:12:31]} (12. Bxd5 exd5 13. N1a3 (13. Qxd5 Bh3 $19 {[%mdl 64] Discovered Attack}) 13... Bh3 $17) 12... Nf6 {[%emt 0:04:02] The position is equal.} 13. N1c3 {[%emt 0:01:58][%cal Bb1c3,Bc3e4,Be4g5][%mdl 32]} a6 {[%emt 0:07:01]} 14. Nd6 {[%emt 0:01:24]} Qc7 {[%emt 0:02:12]} 15. Nde4 {[%emt 0:01:56]} Nxe4 {[%emt 0:02:29]} 16. Nxe4 {[%emt 0:01:25]} Bd4 {[%emt 0:00:18]} 17. Rb1 {[%emt 0:01:11]} Rad8 {[%emt 0:05:00]} 18. b3 {[%emt 0:03:36]} f5 {[%emt 0:13:32]} (18... Bc8 {feels hotter.} 19. Qh5 f5 20. Ng5 h6) 19. Ng5 {[%emt 0:02:59]} Bc8 {[%emt 0:00:28][%cal Od4f2]} 20. Qe2 {[%emt 0:01:45]} Rfe8 {[%emt 0:00:26]} 21. Bf4 {[%emt 0:02:19]} ({Of course not} 21. Qh5 g6 22. Qh6 Qg7 23. Qxg7+ Kxg7 $15) 21... Qe7 {[%emt 0:03:56]} 22. h4 {[%emt 0:10:58]} ({Reject} 22. Qh5 g6 23. Qh6 Nb4 $15) (22. Rbd1 $11) 22... Bf6 {[%emt 0:04:23]} (22... e5 $5 {[%cal Re5f4]} 23. Bd2 e4 $15) 23. Rfe1 {[%emt 0:03:26][%cal Oc4c5]} Nd4 {[%emt 0:05:45]} (23... h6 {simplifies} 24. Bxc6 bxc6 25. Nf3 Bb7) 24. Qh5 {[%emt 0:01:53]} h6 {[%emt 0:03:32] [#]} (24... g6 $5 {[%cal Rg6h5]} 25. Qh6 Nc2 $11) 25. Qg6 $1 {[%emt 0:02:24] Threatening mate with Qh7+.} hxg5 {[%emt 0:04:57]} 26. hxg5 {[%emt 0:00:05]} Qf7 {[%emt 0:00:05]} 27. Qxf7+ {[%emt 0:00:07]} Kxf7 {[%emt 0:00:05]} 28. gxf6 {[%emt 0:00:03]} gxf6 {[%emt 0:00:10]} 29. Be3 {[%emt 0:04:14]} (29. Bc7 $14 Rd7 30. Bb6) 29... Nc2 $11 {[%emt 0:02:37]} 30. Re2 {[%emt 0:02:53]} Nxe3 {[%emt 0:00:10]} 31. Rxe3 {[%emt 0:02:32]} Rd2 {[%emt 0:00:10]} 32. a4 {[%emt 0:03:25]} Red8 {[%emt 0:03:30]} 33. Bf3 {[%emt 0:02:01]} Ke7 {[%emt 0:05:35]} 34. Kf1 {[%emt 0:03:17]} R8d4 {[%emt 0:04:42]} 35. Ke1 {[%emt 0:02:58]} a5 {[%emt 0:02:10]} 36. b4 {[%emt 0:02:55]} e5 {[%emt 0:04:01]} 37. bxa5 {[%emt 0:04:06]} e4 {[%emt 0:00:35]} 38. Be2 {[%emt 0:00:28]} Ra2 {[%emt 0:00:51]} 39. Rd1 {[%emt 0:00:56]} Rxd1+ {[%emt 0:01:21]} 40. Bxd1 {[%emt 0:00:00][%mdl 4096] Endgame KRB-KRB} Kd6 {[%emt 0:00:00]} 41. Rb3 {[%emt 0:05:11]} Ke5 {[%emt 0:04:15]} 42. Rb6 {[%emt 0:04:22] [#] Hoping for c5.} Bd7 {[%emt 0:07:07]} ({Black should play} 42... Kd4 $14) 43. Rxb7 {[%emt 0:02:33]} Bxa4 {[%emt 0:00:07]} 44. Bxa4 {[%emt 0:01:26]} Rxa4 $16 {[%emt 0:00:04] KR-KR} 45. Rb5+ {[%emt 0:00:10]} Kd4 $2 {[%emt 0:00:56][%mdl 8192] A mistake that costs the game.} (45... Ke6 $16 {is tougher.}) 46. Rxf5 $18 {[%emt 0:05:45]} Kxc4 $2 {[%emt 0:01:59]} (46... Ra1+ {was necessary.} 47. Ke2 Ra2+ 48. Kf1 Kxc4) 47. Rxf6 {[%emt 0:02:25] Rd6 would be deadly.} Rxa5 $2 {[%emt 0:01:03]} (47... Kd4 48. a6 Ra5) 48. Rd6 {[%emt 0:00:12]} Ra2 {[%emt 0:03:26]} 49. Rd2 {[%emt 0:00:34]} Ra3 {[%emt 0:01:52]} 50. Ke2 {[%emt 0:00:10] Rd8 is the strong threat.} Rb3 {[%emt 0:00:20]} 51. Rd7 {[%emt 0:00:49]} (51. Rd8 $142 Rf3 52. Rd2) 51... Ra3 {[%emt 0:00:33]} 52. g4 {[%emt 0:02:29]} Kc5 {[%emt 0:02:56]} 53. g5 {[%emt 0:01:54]} Kc6 {[%emt 0:00:23]} 54. Rd1 {[%emt 0:00:48] White mates.} Ra7 {[%emt 0:03:05]} 55. Ke3 {[%emt 0:00:52]} Rg7 {[%emt 0:01:20]} 56. Kf4 {[%emt 0:00:15]} Rg8 {[%emt 0:03:39]} 57. Kf5 {[%emt 0:00:47]} Rf8+ {[%emt 0:00:28]} 58. Kxe4 {[%emt 0:00:08]} Rxf2 {[%emt 0:00:04]} 59. g6 {[%emt 0:01:54][%cal Bg5g6,Bg6g7][%mdl 32]} Rg2 {[%emt 0:00:07]} 60. Kf5 {[%emt 0:00:04]} Rf2+ {[%emt 0:00:04]} 61. Ke6 {[%emt 0:00:15]} Rg2 {[%emt 0:00:29]} 62. Kf7 {[%emt 0:00:05]} Rf2+ {[%emt 0:00:04]} 63. Kg8 {[%emt 0:00:05]} Rg2 {[%emt 0:00:04]} 64. g7 {[%emt 0:00:03]} Rg3 {[%emt 0:00:03]} 65. Rh1 {[%emt 0:00:37]} Kd5 {[%emt 0:00:14] Weighted Error Value: White=0.06 (flawless) /Black=0.30} 1-0